[Event "Saint Louis Blitz 2020"]
[Site "Saint Louis"]
[Date "2020.09.18"]
[Round "3"]
[White "Harikrishna, Pentala"]
[Black "Carlsen, Magnus"]
[Result "1-0"]
[ECO "B50"]
[WhiteElo "2732"]
[BlackElo "2863"]
[Annotator "ChessBase"]
[PlyCount "125"]
[EventDate "2020.09.18"]
[EventType "blitz"]
[EventCountry "USA"]
[SourceTitle "playchess.com"]
[Source "ChessBase"]
[SourceQuality "1"]
[TimeControl "300+3"]

1. e4 {[%emt 0:00:03]} c5 {[%emt 0:00:03]} 2. Nf3 {[%emt 0:00:01]} d6 {[%emt 0:
00:00]} 3. c3 {[%emt 0:00:02]} Nf6 {[%emt 0:00:03]} 4. Be2 {[%emt 0:00:01]} Bd7
{[%emt 0:00:09]} 5. Qc2 {[%emt 0:00:04]} Bc6 {[%emt 0:00:03]} 6. d3 {[%emt 0:
00:03]} Nbd7 {[%emt 0:00:05]} 7. O-O {[%emt 0:00:06]} e6 {[%emt 0:00:05]} 8.
Nbd2 {[%emt 0:00:13]} Rc8 {[%emt 0:00:01]} 9. d4 {[%emt 0:00:02]} cxd4 {
[%emt 0:00:11]} 10. Nxd4 {[%emt 0:00:02]} Be7 {[%emt 0:00:01]} 11. Nxc6 {
[%emt 0:00:05]} Rxc6 {[%emt 0:00:03]} 12. Nb3 {[%emt 0:00:21]} O-O {[%emt 0:00:
03]} 13. Be3 {[%emt 0:00:07]} a6 {[%emt 0:00:04]} 14. Rad1 {[%emt 0:00:08]} Rc8
{[%emt 0:00:44]} 15. f4 {[%emt 0:00:26]} Qc7 {[%emt 0:00:02]} 16. Kh1 {[%emt 0:
00:01]} b5 {[%emt 0:00:09]} 17. Bd3 {[%emt 0:00:13]} g6 {[%emt 0:00:15]} 18.
Qe2 {[%emt 0:00:14]} Nb6 {[%emt 0:00:13]} 19. f5 {[%emt 0:00:20]} gxf5 {
[%emt 0:02:23]} 20. exf5 {[%emt 0:00:56]} e5 {[%emt 0:00:01]} 21. Nd2 {[%emt 0:
00:30]} Kh8 {[%emt 0:00:04]} 22. Ne4 {[%emt 0:00:06]} Nbd5 {[%emt 0:00:07]} 23.
Nxf6 {[%emt 0:00:25]} Nxf6 {[%emt 0:00:00]} 24. Bg5 {[%emt 0:00:06]} d5 {
[%emt 0:00:06]} 25. Bc2 {[%emt 0:00:06]} Rcd8 {[%emt 0:00:14]} 26. Bb3 {
[%emt 0:00:20]} e4 {[%emt 0:00:33]} 27. Bxf6+ {[%emt 0:00:29]} Bxf6 {[%emt 0:
00:00]} 28. Bxd5 {[%emt 0:00:01]} Rfe8 {[%emt 0:00:03]} 29. Bxe4 {[%emt 0:00:
14]} Rxd1 {[%emt 0:00:01]} 30. Rxd1 {[%emt 0:00:02]} b4 {[%emt 0:00:06]} 31.
Qxa6 {[%emt 0:00:05]} Kg7 {[%emt 0:00:02]} 32. Qd3 {[%emt 0:00:15]} bxc3 {
[%emt 0:00:02]} 33. bxc3 {[%emt 0:00:01]} Qe5 {[%emt 0:00:05]} 34. Bf3 {
[%emt 0:00:04]} Qe1+ {[%emt 0:00:03]} 35. Qf1 {[%emt 0:00:01]} Qxc3 {[%emt 0:
00:01]} 36. Qf2 {[%emt 0:00:04]} Qe5 {[%emt 0:00:05]} 37. Qg3+ {[%emt 0:00:12]}
Qxg3 {[%emt 0:00:01]} 38. hxg3 {[%emt 0:00:00]} Re5 {[%emt 0:00:01]} 39. g4 {
[%emt 0:00:06]} Ra5 {[%emt 0:00:01]} 40. Bd5 {[%emt 0:00:02]} Ra4 {[%emt 0:00:
01]} 41. Bb3 {[%emt 0:00:06]} Rxg4 {[%emt 0:00:09]} 42. Rd7 {[%emt 0:00:02]}
Kh6 {[%emt 0:00:10]} 43. Rxf7 {[%emt 0:00:08]} Rh4+ {[%emt 0:00:05]} 44. Kg1 {
[%emt 0:00:01]} Kg5 {[%emt 0:00:01]} 45. Be6 {[%emt 0:00:03]} h5 {[%emt 0:00:
06]} 46. Kf2 {[%emt 0:00:03]} Rb4 {[%emt 0:00:01]} 47. Rf8 {[%emt 0:00:04]} h4
{[%emt 0:00:02]} 48. Ke3 {[%emt 0:00:02]} Bd4+ {[%emt 0:00:03]} 49. Kf3 {
[%emt 0:00:02]} Bc5 {[%emt 0:00:09]} 50. Rg8+ {[%emt 0:00:03]} Kf6 {[%emt 0:00:
01]} 51. Rg6+ {[%emt 0:00:05]} Ke5 {[%emt 0:00:01]} 52. Rg4 {[%emt 0:00:01]}
Rb1 {[%emt 0:00:17]} 53. Re4+ {[%emt 0:00:03]} Kf6 {[%emt 0:00:02]} 54. Rxh4 {
[%emt 0:00:01]} Rf1+ {[%emt 0:00:01]} 55. Ke4 {[%emt 0:00:02]} Kg5 {[%emt 0:00:
05]} 56. Rh8 {[%emt 0:00:06]} Re1+ {[%emt 0:00:04]} 57. Kd5 {[%emt 0:00:01]}
Ba3 {[%emt 0:00:01]} 58. Rg8+ {[%emt 0:00:03]} Kf4 {[%emt 0:00:02]} 59. g3+ {
[%emt 0:00:03]} Kf3 {[%emt 0:00:00]} 60. f6 {[%emt 0:00:02]} Rd1+ {[%emt 0:00:
01]} 61. Kc4 {[%emt 0:00:05]} Rd6 {[%emt 0:00:01]} 62. Bd5+ {[%emt 0:00:15]}
Ke3 {[%emt 0:00:05]} 63. Ra8 {[%emt 0:00:01]} 1-0

[Event "Saint Louis Blitz 2020"]
[Site "Saint Louis"]
[Date "2020.09.18"]
[Round "4"]
[White "Nakamura, Hikaru"]
[Black "Firouzja, Alireza"]
[Result "1-0"]
[ECO "B51"]
[WhiteElo "2736"]
[BlackElo "2728"]
[Annotator "ChessBase"]
[PlyCount "111"]
[EventDate "2020.09.18"]
[EventType "blitz"]
[EventCountry "USA"]
[SourceTitle "playchess.com"]
[Source "ChessBase"]
[SourceQuality "1"]
[TimeControl "300+3"]

1. e4 {[%emt 0:00:03]} c5 {[%emt 0:00:03]} 2. Nf3 {[%emt 0:00:02]} d6 {[%emt 0:
00:01]} 3. Bb5+ {[%emt 0:00:03]} Nd7 {[%emt 0:00:01]} 4. Ba4 {[%emt 0:00:01]}
a6 {[%emt 0:00:02]} 5. c3 {[%emt 0:00:04]} b5 {[%emt 0:00:08]} 6. Bc2 {[%emt 0:
00:01]} Bb7 {[%emt 0:00:06]} 7. O-O {[%emt 0:00:01]} Ngf6 {[%emt 0:00:05]} 8.
Re1 {[%emt 0:00:07]} g6 {[%emt 0:00:05]} 9. d4 {[%emt 0:00:02]} cxd4 {[%emt 0:
00:02]} 10. cxd4 {[%emt 0:00:00]} Bg7 {[%emt 0:00:01]} 11. Nbd2 {[%emt 0:00:13]
} O-O {[%emt 0:00:04]} 12. Nf1 {[%emt 0:00:01]} Rc8 {[%emt 0:00:05]} 13. Ng3 {
[%emt 0:00:02]} Qc7 {[%emt 0:00:18]} 14. Bd3 {[%emt 0:00:03]} Qb8 {[%emt 0:00:
15]} 15. Bd2 {[%emt 0:00:10]} e5 {[%emt 0:00:11]} 16. d5 {[%emt 0:00:01]} Nc5 {
[%emt 0:00:03]} 17. Bc2 {[%emt 0:00:21]} Ba8 {[%emt 0:00:34]} 18. h3 {[%emt 0:
00:25]} Kh8 {[%emt 0:00:16]} 19. b4 {[%emt 0:00:10]} Ncd7 {[%emt 0:00:01]} 20.
a4 {[%emt 0:00:00]} Nb6 {[%emt 0:00:07]} 21. axb5 {[%emt 0:00:02]} axb5 {
[%emt 0:00:01]} 22. Bd3 {[%emt 0:00:01]} Nc4 {[%emt 0:00:01]} 23. Qe2 {[%emt 0:
00:04]} Nxd2 {[%emt 0:00:22]} 24. Qxd2 {[%emt 0:00:15]} Ng8 {[%emt 0:00:26]}
25. Ra5 {[%emt 0:00:03]} Bh6 {[%emt 0:00:19]} 26. Qb2 {[%emt 0:00:10]} Qc7 {
[%emt 0:00:19]} 27. Rxb5 {[%emt 0:00:06]} Bc1 {[%emt 0:00:30]} 28. Qa1 {
[%emt 0:00:35]} Bf4 {[%emt 0:00:16]} 29. Ra5 {[%emt 0:00:35]} Qb6 {[%emt 0:00:
20]} 30. Ra6 {[%emt 0:00:30]} Qxb4 {[%emt 0:00:33]} 31. Ne2 {[%emt 0:00:01]}
Bh6 {[%emt 0:00:04]} 32. Rb1 {[%emt 0:00:04]} Qc5 {[%emt 0:00:01]} 33. Ra7 {
[%emt 0:00:51]} Be3 {[%emt 0:00:19]} 34. fxe3 {[%emt 0:00:07]} Qxe3+ {[%emt 0:
00:01]} 35. Kh1 {[%emt 0:00:08]} Qxd3 {[%emt 0:00:02]} 36. Ng3 {[%emt 0:00:01]}
Nf6 {[%emt 0:00:09]} 37. Re1 {[%emt 0:00:06]} Kg8 {[%emt 0:00:17]} 38. Kh2 {
[%emt 0:00:20]} h5 {[%emt 0:00:04]} 39. Ra3 {[%emt 0:00:09]} Qc2 {[%emt 0:00:
07]} 40. Ra6 {[%emt 0:00:15]} Rfd8 {[%emt 0:00:09]} 41. Nxe5 {[%emt 0:00:13]}
h4 {[%emt 0:00:01]} 42. Nf1 {[%emt 0:00:00]} Nxe4 {[%emt 0:00:12]} 43. Ng4 {
[%emt 0:00:07]} Nc3 {[%emt 0:00:01]} 44. Ra3 {[%emt 0:00:16]} Bxd5 {[%emt 0:00:
05]} 45. Nfe3 {[%emt 0:00:01]} Qd2 {[%emt 0:00:01]} 46. Nf6+ {[%emt 0:00:03]}
Kf8 {[%emt 0:00:02]} 47. Nfxd5 {[%emt 0:00:02]} Nxd5 {[%emt 0:00:03]} 48. Qh8+
{[%emt 0:00:00]} Ke7 {[%emt 0:00:01]} 49. Nxd5+ {[%emt 0:00:08]} Kd7 {[%emt 0:
00:00]} 50. Nf6+ {[%emt 0:00:03]} Kc6 {[%emt 0:00:06]} 51. Qxh4 {[%emt 0:00:00]
} d5 {[%emt 0:00:06]} 52. Rea1 {[%emt 0:00:05]} g5 {[%emt 0:00:02]} 53. Ra6+ {
[%emt 0:00:02]} Kb5 {[%emt 0:00:04]} 54. Qa4+ {[%emt 0:00:06]} Kc5 {[%emt 0:00:
01]} 55. Ra5+ {[%emt 0:00:02]} Kd6 {[%emt 0:00:02]} 56. Rxd5+ {[%emt 0:00:01]}
1-0

[Event "Saint Louis Blitz 2020"]
[Site "Saint Louis"]
[Date "2020.09.18"]
[Round "4"]
[White "Xiong, Jeffery"]
[Black "Harikrishna, Pentala"]
[Result "0-1"]
[ECO "B12"]
[WhiteElo "2709"]
[BlackElo "2732"]
[Annotator "ChessBase"]
[PlyCount "36"]
[EventDate "2020.09.18"]
[EventType "blitz"]
[EventCountry "USA"]
[SourceTitle "playchess.com"]
[Source "ChessBase"]
[SourceQuality "1"]
[TimeControl "300+3"]

1. e4 {[%emt 0:00:03]} c6 {[%emt 0:00:03]} 2. d4 {[%emt 0:00:02]} d5 {[%emt 0:
00:01]} 3. f3 {[%emt 0:00:00]} dxe4 {[%emt 0:00:05]} 4. fxe4 {[%emt 0:00:00]}
e5 {[%emt 0:00:02]} 5. Nf3 {[%emt 0:00:01]} Bg4 {[%emt 0:00:04]} 6. Bc4 {
[%emt 0:00:01]} Nd7 {[%emt 0:00:18]} 7. c3 {[%emt 0:00:00]} Bd6 {[%emt 0:00:12]
} 8. Qb3 {[%emt 0:00:14]} Qe7 {[%emt 0:00:04]} 9. O-O {[%emt 0:02:24]} Ngf6 {
[%emt 0:00:42]} 10. Qxb7 {[%emt 0:00:02]} O-O {[%emt 0:00:50]} 11. dxe5 {
[%emt 0:00:29]} Bxe5 {[%emt 0:00:51]} 12. Nxe5 {[%emt 0:00:01]} Qc5+ {[%emt 0:
00:08]} 13. Kh1 {[%emt 0:00:03]} Nxe5 {[%emt 0:00:01]} 14. b3 {[%emt 0:01:03]}
Nxc4 {[%emt 0:00:29]} 15. bxc4 {[%emt 0:00:03]} Nxe4 {[%emt 0:00:10]} 16. Qb2 {
[%emt 0:00:18]} Rad8 {[%emt 0:00:23]} 17. Qc2 {[%emt 0:00:28]} Rfe8 {[%emt 0:
00:15]} 18. Bf4 {[%emt 0:00:32]} Nf2+ {[%emt 0:00:18]} 0-1

[Event "Saint Louis Blitz 2020"]
[Site "Saint Louis"]
[Date "2020.09.18"]
[Round "5"]
[White "Harikrishna, Pentala"]
[Black "Nakamura, Hikaru"]
[Result "1/2-1/2"]
[ECO "C67"]
[WhiteElo "2732"]
[BlackElo "2736"]
[Annotator "ChessBase"]
[PlyCount "44"]
[EventDate "2020.09.18"]
[EventType "blitz"]
[EventCountry "USA"]
[SourceTitle "playchess.com"]
[Source "ChessBase"]
[SourceQuality "1"]
[TimeControl "300+3"]

1. e4 {[%emt 0:00:03]} e5 {[%emt 0:00:03]} 2. Nf3 {[%emt 0:00:01]} Nc6 {
[%emt 0:00:00]} 3. Bb5 {[%emt 0:00:01]} Nf6 {[%emt 0:00:01]} 4. O-O {[%emt 0:
00:05]} Nxe4 {[%emt 0:00:01]} 5. Re1 {[%emt 0:00:15]} Nd6 {[%emt 0:00:01]} 6.
Nxe5 {[%emt 0:00:01]} Be7 {[%emt 0:00:01]} 7. Bf1 {[%emt 0:00:01]} Nf5 {
[%emt 0:00:08]} 8. Nf3 {[%emt 0:00:05]} O-O {[%emt 0:00:02]} 9. d4 {[%emt 0:00:
01]} d5 {[%emt 0:00:00]} 10. Nc3 {[%emt 0:00:02]} Nh4 {[%emt 0:00:09]} 11. Nxh4
{[%emt 0:00:12]} Bxh4 {[%emt 0:00:00]} 12. Bf4 {[%emt 0:00:22]} Bf5 {[%emt 0:
00:09]} 13. Bd3 {[%emt 0:00:22]} Bxd3 {[%emt 0:00:18]} 14. Qxd3 {[%emt 0:00:01]
} Bf6 {[%emt 0:00:00]} 15. Ne2 {[%emt 0:00:15]} Ne7 {[%emt 0:00:05]} 16. Ng3 {
[%emt 0:00:23]} Ng6 {[%emt 0:00:07]} 17. Bd2 {[%emt 0:00:14]} c6 {[%emt 0:00:
14]} 18. Bb4 {[%emt 0:00:35]} Re8 {[%emt 0:00:18]} 19. Rxe8+ {[%emt 0:00:01]}
Qxe8 {[%emt 0:00:00]} 20. Re1 {[%emt 0:00:02]} Qd7 {[%emt 0:00:01]} 21. Qf5 {
[%emt 0:00:20]} Qxf5 {[%emt 0:00:13]} 22. Nxf5 {[%emt 0:00:01]} Nf4 {[%emt 0:
00:01]} 1/2-1/2

[Event "Saint Louis Blitz 2020"]
[Site "Saint Louis"]
[Date "2020.09.18"]
[Round "5"]
[White "Firouzja, Alireza"]
[Black "Dominguez Perez, Leinier"]
[Result "1/2-1/2"]
[ECO "C82"]
[WhiteElo "2728"]
[BlackElo "2758"]
[Annotator "ChessBase"]
[PlyCount "154"]
[EventDate "2020.09.18"]
[EventType "blitz"]
[EventCountry "USA"]
[SourceTitle "playchess.com"]
[Source "ChessBase"]
[SourceQuality "1"]
[TimeControl "300+3"]

1. e4 {[%emt 0:00:03]} e5 {[%emt 0:00:03]} 2. Nf3 {[%emt 0:00:04]} Nc6 {
[%emt 0:00:01]} 3. Bb5 {[%emt 0:00:01]} a6 {[%emt 0:00:02]} 4. Ba4 {[%emt 0:00:
02]} Nf6 {[%emt 0:00:01]} 5. O-O {[%emt 0:00:02]} Nxe4 {[%emt 0:00:01]} 6. d4 {
[%emt 0:00:01]} b5 {[%emt 0:00:01]} 7. Bb3 {[%emt 0:00:01]} d5 {[%emt 0:00:01]}
8. dxe5 {[%emt 0:00:01]} Be6 {[%emt 0:00:00]} 9. c3 {[%emt 0:00:01]} Bc5 {
[%emt 0:00:03]} 10. Qd3 {[%emt 0:00:03]} O-O {[%emt 0:00:02]} 11. Nbd2 {
[%emt 0:00:10]} f5 {[%emt 0:00:02]} 12. exf6 {[%emt 0:00:21]} Nxf6 {[%emt 0:00:
04]} 13. Bc2 {[%emt 0:00:13]} Qd6 {[%emt 0:00:38]} 14. Nb3 {[%emt 0:00:14]} Bb6
{[%emt 0:00:29]} 15. Nfd4 {[%emt 0:00:09]} Ne5 {[%emt 0:01:06]} 16. Qg3 {
[%emt 0:00:09]} Ne4 {[%emt 0:00:17]} 17. Bxe4 {[%emt 0:00:32]} dxe4 {[%emt 0:
00:00]} 18. Nxe6 {[%emt 0:00:11]} Bxf2+ {[%emt 0:00:16]} 19. Qxf2 {[%emt 0:00:
14]} Rxf2 {[%emt 0:00:02]} 20. Rxf2 {[%emt 0:00:00]} Qxe6 {[%emt 0:00:03]} 21.
Nd4 {[%emt 0:00:02]} Qd7 {[%emt 0:00:36]} 22. Be3 {[%emt 0:00:22]} Ng4 {
[%emt 0:00:22]} 23. Re2 {[%emt 0:00:04]} c5 {[%emt 0:00:14]} 24. Nb3 {[%emt 0:
00:01]} Nxe3 {[%emt 0:00:09]} 25. Rxe3 {[%emt 0:00:01]} Qd5 {[%emt 0:00:08]}
26. Rae1 {[%emt 0:00:01]} Re8 {[%emt 0:00:05]} 27. h3 {[%emt 0:00:05]} h6 {
[%emt 0:00:04]} 28. R1e2 {[%emt 0:00:20]} Kh7 {[%emt 0:00:10]} 29. Rd2 {
[%emt 0:00:18]} Qg5 {[%emt 0:00:26]} 30. Rde2 {[%emt 0:00:03]} Rd8 {[%emt 0:00:
21]} 31. Rxe4 {[%emt 0:00:02]} Rd1+ {[%emt 0:00:02]} 32. Kh2 {[%emt 0:00:01]}
Qf6 {[%emt 0:00:13]} 33. Kg3 {[%emt 0:00:29]} Rd3+ {[%emt 0:00:06]} 34. Kh2 {
[%emt 0:00:05]} Qd6+ {[%emt 0:00:02]} 35. Kg1 {[%emt 0:00:01]} Rd1+ {[%emt 0:
00:05]} 36. Kf2 {[%emt 0:00:01]} Qf6+ {[%emt 0:00:08]} 37. Kg3 {[%emt 0:00:06]}
Rf1 {[%emt 0:00:08]} 38. Nd2 {[%emt 0:00:21]} Qd6+ {[%emt 0:00:04]} 39. Re5 {
[%emt 0:00:00]} Rf5 {[%emt 0:00:09]} 40. Nf3 {[%emt 0:00:01]} Rxe5 {[%emt 0:00:
02]} 41. Nxe5 {[%emt 0:00:02]} c4 {[%emt 0:00:05]} 42. a3 {[%emt 0:00:07]} a5 {
[%emt 0:00:01]} 43. Kf2 {[%emt 0:00:02]} Qc5+ {[%emt 0:00:04]} 44. Kg3 {
[%emt 0:00:07]} b4 {[%emt 0:00:05]} 45. axb4 {[%emt 0:00:03]} axb4 {[%emt 0:00:
01]} 46. cxb4 {[%emt 0:00:00]} Qxb4 {[%emt 0:00:02]} 47. Nf3 {[%emt 0:00:02]}
Qd6+ {[%emt 0:00:03]} 48. Kf2 {[%emt 0:00:02]} Qc5+ {[%emt 0:00:04]} 49. Kg3 {
[%emt 0:00:03]} Kg8 {[%emt 0:00:03]} 50. Rd2 {[%emt 0:00:05]} Kf7 {[%emt 0:00:
07]} 51. Rd4 {[%emt 0:00:08]} Kg8 {[%emt 0:00:08]} 52. Rd2 {[%emt 0:00:04]} Kh7
{[%emt 0:00:00]} 53. Re2 {[%emt 0:00:02]} Qc7+ {[%emt 0:00:02]} 54. Kf2 {
[%emt 0:00:01]} Qb6+ {[%emt 0:00:00]} 55. Kg3 {[%emt 0:00:02]} Qc5 {[%emt 0:00:
02]} 56. Rd2 {[%emt 0:00:01]} Qe3 {[%emt 0:00:07]} 57. Rc2 {[%emt 0:00:09]} Qe4
{[%emt 0:00:02]} 58. Rd2 {[%emt 0:00:01]} g5 {[%emt 0:00:03]} 59. Rd7+ {
[%emt 0:00:06]} Kg8 {[%emt 0:00:03]} 60. Rd8+ {[%emt 0:00:09]} Kg7 {[%emt 0:00:
02]} 61. Rd7+ {[%emt 0:00:03]} Kf8 {[%emt 0:00:02]} 62. Rd8+ {[%emt 0:00:13]}
Ke7 {[%emt 0:00:05]} 63. Rd4 {[%emt 0:00:01]} Qc2 {[%emt 0:00:05]} 64. Rd2 {
[%emt 0:00:02]} Qb3 {[%emt 0:00:03]} 65. Kf2 {[%emt 0:00:25]} Qb6+ {[%emt 0:00:
03]} 66. Kg3 {[%emt 0:00:04]} Qb8+ {[%emt 0:00:01]} 67. Kf2 {[%emt 0:00:03]}
Kf6 {[%emt 0:00:03]} 68. g4 {[%emt 0:00:30]} Qb6+ {[%emt 0:00:05]} 69. Kg2 {
[%emt 0:00:17]} Qe3 {[%emt 0:00:06]} 70. Rf2 {[%emt 0:00:01]} Kg7 {[%emt 0:00:
02]} 71. Rd2 {[%emt 0:00:01]} Qe4 {[%emt 0:00:02]} 72. Rd7+ {[%emt 0:00:06]}
Kf8 {[%emt 0:00:02]} 73. Rd2 {[%emt 0:00:01]} Kg7 {[%emt 0:00:02]} 74. Rd7+ {
[%emt 0:00:02]} Kg8 {[%emt 0:00:01]} 75. Rd2 {[%emt 0:00:04]} Qe3 {[%emt 0:00:
05]} 76. Rc2 {[%emt 0:00:08]} Kg7 {[%emt 0:00:03]} 77. Rd2 {[%emt 0:00:03]} Qe4
{[%emt 0:00:05]} 1/2-1/2

[Event "Saint Louis Blitz 2020"]
[Site "Saint Louis"]
[Date "2020.09.18"]
[Round "6"]
[White "So, Wesley"]
[Black "Firouzja, Alireza"]
[Result "1/2-1/2"]
[ECO "D37"]
[WhiteElo "2770"]
[BlackElo "2728"]
[Annotator "ChessBase"]
[PlyCount "65"]
[EventDate "2020.09.18"]
[EventType "blitz"]
[EventCountry "USA"]
[SourceTitle "playchess.com"]
[Source "ChessBase"]
[SourceQuality "1"]
[TimeControl "300+3"]

1. d4 {[%emt 0:00:03]} Nf6 {[%emt 0:00:03]} 2. c4 {[%emt 0:00:06]} e6 {[%emt 0:
00:01]} 3. Nf3 {[%emt 0:00:02]} d5 {[%emt 0:00:01]} 4. Nc3 {[%emt 0:00:01]} Be7
{[%emt 0:00:00]} 5. Bf4 {[%emt 0:00:02]} O-O {[%emt 0:00:01]} 6. e3 {[%emt 0:
00:01]} Nbd7 {[%emt 0:00:01]} 7. Be2 {[%emt 0:00:08]} dxc4 {[%emt 0:00:06]} 8.
O-O {[%emt 0:00:03]} c5 {[%emt 0:00:13]} 9. dxc5 {[%emt 0:00:00]} Nxc5 {
[%emt 0:00:01]} 10. Bxc4 {[%emt 0:00:01]} Qxd1 {[%emt 0:00:01]} 11. Rfxd1 {
[%emt 0:00:01]} b6 {[%emt 0:00:01]} 12. Bd6 {[%emt 0:00:22]} Bxd6 {[%emt 0:00:
02]} 13. Rxd6 {[%emt 0:00:00]} Bb7 {[%emt 0:00:02]} 14. Rad1 {[%emt 0:00:01]}
Bxf3 {[%emt 0:00:16]} 15. gxf3 {[%emt 0:00:00]} Rfc8 {[%emt 0:00:04]} 16. Be2 {
[%emt 0:00:15]} g5 {[%emt 0:00:13]} 17. R6d4 {[%emt 0:00:16]} Kf8 {[%emt 0:00:
07]} 18. h4 {[%emt 0:00:15]} gxh4 {[%emt 0:00:15]} 19. Kh2 {[%emt 0:00:19]} Ke7
{[%emt 0:00:05]} 20. Kh3 {[%emt 0:00:07]} a5 {[%emt 0:00:46]} 21. f4 {[%emt 0:
00:09]} Rab8 {[%emt 0:00:11]} 22. e4 {[%emt 0:00:09]} h5 {[%emt 0:00:45]} 23.
f3 {[%emt 0:00:32]} Rg8 {[%emt 0:00:17]} 24. e5 {[%emt 0:00:09]} Nd5 {[%emt 0:
00:17]} 25. Nxd5+ {[%emt 0:00:23]} exd5 {[%emt 0:00:00]} 26. f5 {[%emt 0:00:22]
} f6 {[%emt 0:00:53]} 27. e6 {[%emt 0:00:10]} Rg3+ {[%emt 0:00:21]} 28. Kxh4 {
[%emt 0:00:03]} Rbg8 {[%emt 0:00:05]} 29. Rxd5 {[%emt 0:00:06]} Rg2 {[%emt 0:
00:10]} 30. Bf1 {[%emt 0:00:01]} Rh2+ {[%emt 0:00:14]} 31. Bh3 {[%emt 0:00:01]}
Rxb2 {[%emt 0:00:10]} 32. f4 {[%emt 0:00:59]} Rh2 {[%emt 0:00:18]} 33. R5d2 {
[%emt 0:00:30]} 1/2-1/2

[Event "Saint Louis Blitz 2020"]
[Site "Saint Louis"]
[Date "2020.09.18"]
[Round "6"]
[White "Nakamura, Hikaru"]
[Black "Dominguez Perez, Leinier"]
[Result "1-0"]
[ECO "C77"]
[WhiteElo "2736"]
[BlackElo "2758"]
[Annotator "ChessBase"]
[PlyCount "85"]
[EventDate "2020.09.18"]
[EventType "blitz"]
[EventCountry "USA"]
[SourceTitle "playchess.com"]
[Source "ChessBase"]
[SourceQuality "1"]
[TimeControl "300+3"]

1. e4 {[%emt 0:00:03]} e5 {[%emt 0:00:03]} 2. Nf3 {[%emt 0:00:02]} Nc6 {
[%emt 0:00:01]} 3. Bb5 {[%emt 0:00:00]} a6 {[%emt 0:00:02]} 4. Ba4 {[%emt 0:00:
01]} Nf6 {[%emt 0:00:01]} 5. d3 {[%emt 0:00:04]} b5 {[%emt 0:00:02]} 6. Bb3 {
[%emt 0:00:02]} Bc5 {[%emt 0:00:00]} 7. a4 {[%emt 0:00:07]} Rb8 {[%emt 0:00:02]
} 8. O-O {[%emt 0:00:04]} d6 {[%emt 0:00:14]} 9. axb5 {[%emt 0:00:03]} axb5 {
[%emt 0:00:01]} 10. h3 {[%emt 0:00:03]} h6 {[%emt 0:00:06]} 11. Nc3 {[%emt 0:
00:08]} O-O {[%emt 0:00:09]} 12. Ne2 {[%emt 0:00:12]} Re8 {[%emt 0:01:15]} 13.
c3 {[%emt 0:00:04]} Bb6 {[%emt 0:00:11]} 14. Ng3 {[%emt 0:00:07]} Be6 {[%emt 0:
00:07]} 15. Re1 {[%emt 0:00:03]} d5 {[%emt 0:00:14]} 16. Be3 {[%emt 0:00:25]}
Bxe3 {[%emt 0:00:31]} 17. Rxe3 {[%emt 0:00:03]} dxe4 {[%emt 0:00:00]} 18. dxe4
{[%emt 0:00:12]} Qxd1+ {[%emt 0:00:06]} 19. Bxd1 {[%emt 0:00:00]} Ra8 {[%emt 0:
00:16]} 20. Rc1 {[%emt 0:00:03]} Ra2 {[%emt 0:00:33]} 21. b4 {[%emt 0:00:02]}
Bc4 {[%emt 0:00:01]} 22. Be2 {[%emt 0:00:02]} Bxe2 {[%emt 0:00:02]} 23. Nxe2 {
[%emt 0:00:00]} Rb2 {[%emt 0:00:58]} 24. Ng3 {[%emt 0:00:40]} Na7 {[%emt 0:00:
11]} 25. Ne1 {[%emt 0:00:18]} Nc8 {[%emt 0:00:27]} 26. Nd3 {[%emt 0:00:01]} Ra2
{[%emt 0:00:06]} 27. c4 {[%emt 0:00:04]} bxc4 {[%emt 0:00:24]} 28. Rxc4 {
[%emt 0:00:00]} Ra7 {[%emt 0:00:05]} 29. Re1 {[%emt 0:01:08]} Nd6 {[%emt 0:00:
03]} 30. Rc6 {[%emt 0:00:01]} g6 {[%emt 0:00:07]} 31. f3 {[%emt 0:00:05]} Kg7 {
[%emt 0:00:04]} 32. Rec1 {[%emt 0:00:02]} Re7 {[%emt 0:00:04]} 33. R6c5 {
[%emt 0:00:06]} Ra3 {[%emt 0:00:08]} 34. Nxe5 {[%emt 0:00:12]} Nd7 {[%emt 0:00:
03]} 35. Rxc7 {[%emt 0:00:15]} Rxe5 {[%emt 0:00:01]} 36. Rxd7 {[%emt 0:00:01]}
Nb5 {[%emt 0:00:01]} 37. Ne2 {[%emt 0:00:32]} Ra2 {[%emt 0:00:02]} 38. Nf4 {
[%emt 0:00:04]} g5 {[%emt 0:00:05]} 39. Nh5+ {[%emt 0:00:13]} Kg6 {[%emt 0:00:
02]} 40. g4 {[%emt 0:00:02]} Re6 {[%emt 0:00:08]} 41. f4 {[%emt 0:00:11]} Rd6 {
[%emt 0:00:03]} 42. f5+ {[%emt 0:00:01]} Kh7 {[%emt 0:00:02]} 43. Rxf7+ {
[%emt 0:00:01]} 1-0